Nominal Code Description,Nominal Code,Transaction Detail,Date Paid, Net ,Payee Name
Abbey Millennium Celebrations,4361,Abbey 1000 events in 2022,23/09/2021,"20,000",Abbey 1000 Group
Allotments,4301,Cotton Lane site water 15/6-14/9/21,29/09/2021,560,Anglian Water Business Nat Ltd
Allotments,4301,Cotton Lane site Avenue A entrance resurfacing,23/10/2021,"5,210",Mr A T Cobbold
Allotments,4301,Allotments Cotton Lane Avenue A entrance surface,23/10/2021,"5,210",Mr A T Cobbold (ATC Trees & Landscapes)
Audit - External,4113,External audit y/end 31/3/21,22/09/2021,"1,300",PKF Littlejohn LLP
Bury in Bloom Basic,4203,Sponsorship hanging baskets x75,20/07/2021,"5,370",Bury in Bloom
Computer Mtce incl Phones,4125,IT/Phone services MAR21,14/04/2021,884,West Suffolk Council
Computer Mtce incl Phones,4125,IT/Phone services MAR 21,14/05/2021,863,West Suffolk Council
Computer Mtce incl Phones,4125,IT/Phone services MAY21,14/06/2021,884,West Suffolk Council
Computer Mtce incl Phones,4125,IT/Phone services JUN21,14/06/2021,884,West Suffolk Council
Computer Mtce incl Phones,4125,IT/Phone services JUL21,16/08/2021,884,West Suffolk Council
Computer Mtce incl Phones,4125,IT/Phone services AUG21,14/09/2021,884,West Suffolk Council
Computer Mtce incl Phones,4125,IT/Phone services SEP21,14/10/2021,"1,061",West Suffolk Council
Computer Mtce incl Phones,4125,IT/Phone services SEP21,14/10/2021,884,West Suffolk Council
Election Expenses,4128,Election expenses MAY21,15/12/2021,"5,178",West Suffolk Council
Grant Funding,4353,Abbey 1000 events in 2022,27/04/2021,"20,000",Abbey 1000 Group
Grant Funding,4353,Young people learning experience,27/04/2021,"6,500",Bury St Eds Theatre Mgmt Ltd
Grant Funding,4353,Town centre events in 2021,20/07/2021,"20,000",BSE BIDCO Events Ltd
Grant Funding,4353,Purchase 7-seater MPV,23/09/2021,"9,000",Bury St Eds Womens Aid Centre
Grant Funding,4353,arc Santa's grotto,20/10/2021,"25,000",Our Bury St Edmunds (BID)
Grant Funding,4353,arc Santa's grotto,20/10/2021,"25,000",Our Bury St Edmunds (BID)
Grant Funding,4353,Course training elements,24/11/2021,"3,192",Bury St Edmunds Town Trust
Grant Funding,4353,interpretive material ABB GRDN,24/11/2021,"9,000",Abbey of St Eds Heritage Partnership
Grant Funding,4353,Festive Food Project 2021/RIF project 2022,16/12/2021,"6,722",Abbeycroft Leisure
Grant Funding,4353,Replace outdoor nets,16/12/2021,"10,000",Bury St Edmunds Cricket Club
Grant Funding,4353,Ration Books to Rock n Roll Exhibition,10/01/2022,"15,000",Bury St Edmunds Heritage Trust
Grant Funding,4353,Office equipment,26/01/2022,"6,859",West Suffolk Citizens Advice
Insurance,4133,Insurance renewal 1/9/21,24/08/2021,"3,731",Arthur J Gallagher (Came & Co)
Litter Bins,4386,Bin emptying JAN-MAR21,14/04/2021,"1,178",West Suffolk Council
Litter Bins,4386,Bin emptyIng APR-JUN21,20/07/2021,"1,178",West Suffolk Council
Litter Bins,4386,Bin emptying JUL-SEP21,14/10/2021,"1,178",West Suffolk Council
Litter Bins,4386,Bin emptying JUL-SEP21,14/10/2021,"1,178",West Suffolk Council
Litter Bins,4386,Bin emptying OCT-DEC21,14/01/2022,"1,178",West Suffolk Council
Locality budgets,4351,Garden furniture,27/04/2021,500,Just Traid (Bury St Eds) Ltd
Locality budgets,4351,"Defibrillator, cabinet and installation",27/04/2021,"2,117",Mildenhall Rd Est Residents As
Locality budgets,4351,'Beyond The Walls' programme,27/04/2021,"3,500",BurySE Theatre Management Ltd
Locality budgets,4351,Seed fund Volunteer Coordinator,25/06/2021,"1,000",Greener Growth CIC
Locality budgets,4351,Event for the community,06/08/2021,"1,708",BSE FOR BLACK LIVES
Locality budgets,4351,Rope and winder,24/08/2021,"1,000",Bury St Edmunds Cricket Club
Locality budgets,4351,Wood panel of the Abbey,24/08/2021,"1,000",Bury Society
Locality budgets,4351,VJ Memorial Abbey Garden,24/09/2021,"1,300",Royal British Legion
Locality budgets,4351,Plants for community garden,28/09/2021,500,Residents Assocation Marham Park
Locality budgets,4351,Course for pupils at a community farm,23/10/2021,780,Anglian Learning The Howard
Locality budgets,4351,"Wolf sculpture, Abbey Gardens",21/10/2021,"1,400",Bury Society
Locality budgets,4351,Wolf sculpture Abbey Gardens,21/10/2021,"1,400",Bury Society
Locality budgets,4351,Course at community farm,23/10/2021,780,Anglian Learning The Howard
Locality budgets,4351,"Defibrillator, outdoor case",24/11/2021,"1,410",Bury Constitutional Club
Locality budgets,4351,Christmas tree time capsule baubles,24/11/2021,"1,150",Bury St Edmunds Society
Locality budgets,4351,Christmas tree time capsule baubles,24/01/2022,"1,100",Bury Society
Locality budgets,4351,Panto tickets,25/01/2022,650,Anglian Learning The Howard
Locality budgets,4351,"Shelving, laptops, TV",26/01/2022,"2,393",West Suffolk Vineyard Church
Locality budgets,4351,Taster workshops Youth Group,26/01/2022,"1,160",Theatre Royal Bury St Edmunds
Meeting Room Hire,4137,Meeting room hire SEP21-FEB22,19/01/2022,900,Bury St Edmunds Heritage Trust
Office Equipment,4140,Laptop (Cllr K Hind),14/06/2021,659,West Suffolk Council
Office Equipment,4140,Office chairs and pedestals x3,26/01/2022,851,Select Office Furniture
Office Relocation expenses,4143,Human Resources advice regarding issues arising from the office move,12/10/2021,583,MAD-HR Ltd
Office Relocation expenses,4143,Secure office door locks,15/10/2021,504,Keyways The Locksmiths Ltd
Office Relocation expenses,4143,Advice on Human Resources issues arising from office move,12/10/2021,486,MAD-HR Ltd
Office Relocation expenses,4143,Secure office door locks,15/10/2021,420,Keyways The Locksmiths Ltd
Office Relocation expenses,4143,Sound system for meetings,24/11/2021,"5,976",Altek Ltd T/A System Sound
Office Relocation expenses,4143,Office electrical works (lighting improvements),24/11/2021,855,Like Electrical Ltd
Office Rental,4141,Office rent 24/6-28/9/21,08/07/2021,"2,500",Bury St Edmunds Heritage Trust
Office Rental,4141,Office rent 29/9-24/12/21,28/09/2021,"2,500",Bury St Edmunds Heritage Trust
Office Rental,4141,Office Rent 25/12/21-24/3/22,15/12/2021,"2,500",Bury St Edmunds Heritage Trust
Police Community Support Officers,4350,Police Community Support Officer costs JUL-DEC21,20/10/2021,"36,000",Police & Crime Commissioner
Police Community Support Officers,4350,Police Community Support Officer costs JAN-JUN22,19/01/2022,"36,000",Police & Crime Commissioner
Police Community Support Officers,4350,Police Community Support Officer costs JUL-DEC21,20/10/2021,"36,000",Police & Crime Commissioner
Section 137,4151,Van Raam Chat Rickshaw,27/04/2021,"5,500",Bury St Edmunds Rickshaw
Section 137,4151,Recipe cards and jute bags,27/04/2021,845,Still Good Food
Section 137,4151,Recipe cards and jute bags,27/04/2021,875,Still Good Food
Subscriptions,4154,Membership subscriptio 2021/22,27/04/2021,"3,060",Suffolk Assn. Local Councils
Tourism (Destination Management Organisation),4236,Donation to Destination Management Organisation,27/04/2021,"35,000",BSE DMO Ltd
Note,,,,,
Excludes salary payments,,,,,
